bitfinex/quotes_ETHUSD_20251118
["timestamp","ask_amount","ask_price","bid_price","bid_amount"]
[1763458997007,0.002,3049.2,3048.8,8.34916717]
[1763458997213,1.463,3049.1,3048.9,0.4556]
[1763458997413,1.463,3049.1,3048.9,1.33607672]
[1763458997915,1.463,3049.1,3049.0,0.4893]
[1763458998895,1.184,3049.1,3049.0,0.4893]
[1763458999487,1.184,3049.1,3049.0,1.88029264]
[1763459000018,1.184,3049.1,3049.0,0.9733]
[1763459000187,1.463,3049.1,3049.0,2.18295012]
[1763459000385,1.463,3049.1,3049.0,3.49544676]
[1763459000601,0.0012,3049.2,3049.1,1.31249664]
[1763459000900,1.4642,3049.2,3049.1,1.360104]
[1763459001202,1.4642,3049.2,3049.1,1.80643514]
[1763459003059,0.469,3050.0,3049.1,1.80643514]
[1763459003060,0.002,3049.9,3049.6,0.405504]
[1763459003241,0.002,3049.9,3049.8,10.13226381]
[1763459003751,0.1164,3050.7,3049.9,1.79649664]
[1763459003752,0.74297885,3050.5,3049.9,1.79649664]
[1763459003953,0.74297885,3050.5,3050.0,0.484]
[1763459004140,0.279,3050.4,3050.0,0.484]
[1763459004346,0.279,3050.4,3050.1,0.1989]
[1763459004649,0.279,3050.4,3050.3,0.4706]
[1763459005025,0.279,3050.4,3050.3,1.37759264]
[1763459005220,0.279,3050.4,3050.3,0.90699264]
[1763459005647,0.279,3050.4,3050.3,1.37759264]
[1763459006032,0.279,3050.4,3050.3,2.67409264]
[1763459006815,0.279,3050.4,3050.3,3.79630862]
[1763459007015,0.279,3050.4,3050.3,3.31230862]
[1763459007724,0.279,3050.4,3050.3,3.79630862]
[1763459008113,0.74297885,3050.5,3050.3,3.79630862]
[1763459008114,0.74297885,3050.5,3050.4,0.405504]
[1763459008459,1.02197885,3050.5,3050.4,1.360104]
[1763459008624,1.02197885,3050.5,3050.4,0.4706]
[1763459008826,1.02197885,3050.5,3050.4,0.9546]
[1763459009022,1.02197885,3050.5,3050.4,2.16914758]
[1763459009256,2.20597885,3050.5,3050.4,2.16914758]
[1763459009454,2.20597885,3050.5,3050.4,0.9546]
[1763459009638,2.20597885,3050.5,3050.4,0.4706]
[1763459010013,0.74297885,3050.5,3050.4,0.4706]
[1763459010219,2.20597885,3050.5,3050.4,0.9546]
[1763459010483,2.20597885,3050.5,3050.4,2.05692598]
[1763459010655,2.20597885,3050.5,3050.4,1.57292598]
[1763459010856,2.20597885,3050.5,3050.4,2.05692598]
[1763459011160,2.20597885,3050.5,3050.3,1.71949264]
[1763459011557,0.5453,3050.4,3050.3,0.8125]
[1763459011894,0.5453,3050.4,3049.6,0.90699264]
[1763459012101,0.0802,3050.4,3049.6,1.89323294]
[1763459012265,0.0802,3050.4,3049.6,2.37723294]
[1763459012465,0.0802,3050.4,3049.7,1.13805827]
[1763459012856,0.5453,3050.4,3049.7,1.13805827]
[1763459013394,0.5453,3050.4,3049.6,1.89323294]
[1763459013592,0.4651,3050.4,3049.6,0.9862403]
[1763459013818,0.3125,3050.6,3050.3,0.1989]
[1763459014112,0.187,3052.3,3050.6,0.90699264]
[1763459014256,0.002,3050.9,3050.8,3.25416426]
[1763459014561,0.187,3052.3,3050.8,0.03277828]
[1763459014761,1.183,3052.2,3051.6,0.88023678]
[1763459014966,1.183,3052.2,3051.4,1.57915304]
[1763459014967,0.1839,3052.1,3051.7,0.88023678]
[1763459015272,0.6529,3052.1,3051.6,0.88023678]
[1763459015498,0.469,3052.1,3051.8,0.98567]
[1763459015709,0.6414,3051.9,3051.8,0.98567]
[1763459016188,0.28,3052.0,3051.8,0.98567]
[1763459016376,0.6373,3051.9,3051.8,0.98567]
[1763459016972,0.28,3052.0,3051.8,0.98567]
[1763459017519,1.463,3051.9,3051.8,0.98567]
[1763459017725,1.463,3051.9,3051.8,1.72831964]
[1763459018026,0.4835,3052.6,3051.9,0.90699264]
[1763459018230,0.4835,3052.9,3052.5,8.34916717]
[1763459018387,1.183,3052.8,3052.6,0.90699264]
[1763459018721,0.28,3052.7,3052.6,9.25615981]
[1763459019983,0.6191,3053.2,3052.7,0.90699264]
[1763459020191,1.463,3053.1,3052.7,0.90699264]
[1763459020499,1.463,3053.0,3052.7,0.90699264]
[1763459020707,0.6373,3052.8,3052.7,0.90699264]
[1763459020882,0.6373,3052.8,3052.3,0.90699264]
[1763459021210,0.1818,3052.9,3052.3,0.90699264]
[1763459021413,0.4835,3052.8,3052.3,0.90699264]
[1763459022308,0.4555,3052.4,3052.3,0.90699264]
[1763459022477,1.2182,3052.4,3051.8,10.95593177]
[1763459022678,0.4555,3052.3,3051.9,0.90699264]
[1763459022885,0.939,3052.3,3051.9,0.90699264]
[1763459023112,0.939,3052.3,3051.8,10.07748681]
[1763459023477,1.463,3052.2,3051.9,0.90699264]
[1763459025533,1.463,3052.2,3051.8,0.98567]
[1763459025534,0.4555,3052.0,3051.8,0.98567]
[1763459025732,0.6373,3051.9,3051.8,0.98567]
[1763459025935,1.1208,3051.9,3051.4,0.87844496]
[1763459026234,0.7635,3051.8,3051.7,0.98577364]
[1763459026729,1.219,3051.8,3051.7,0.98577364]
[1763459029535,1.219,3051.8,3051.5,0.87844496]
[1763459029738,1.219,3051.8,3051.2,8.34916717]
[1763459029739,0.4555,3051.6,3051.2,1.8643093]
[1763459029892,0.4555,3051.3,3051.2,1.8643093]
[1763459030093,0.7345,3051.3,3051.2,1.8643093]
[1763459030298,1.218,3051.3,3051.2,0.98586434]
[1763459030527,0.279,3051.3,3051.2,0.98586434]
[1763459030733,0.279,3051.3,3050.8,10.10964074]
[1763459030734,1.218,3051.3,3051.0,0.87934215]
[1763459030919,1.218,3051.3,3050.9,0.87934215]
[1763459030920,0.4555,3051.1,3050.9,0.87934215]
[1763459031125,0.1818,3051.1,3050.8,0.87934215]
[1763459031321,0.1818,3051.1,3050.7,0.4835]
[1763459031322,0.4835,3051.0,3050.9,0.88034215]
[1763459031539,0.4835,3051.0,3050.9,0.001]
[1763459032036,0.939,3051.0,3050.9,0.001]
[1763459032208,0.939,3051.0,3050.9,0.88034215]
[1763459032614,2.401,3051.0,3050.9,0.88034215]
[1763459033421,0.939,3051.0,3050.9,0.88034215]
[1763459033754,2.401,3051.0,3050.9,0.88034215]
[1763459033916,1.183,3051.0,3050.9,1.11339176]
[1763459034108,0.6653,3051.9,3051.0,0.405504]
[1763459034307,1.462,3051.8,3051.4,0.88068947]
[1763459034524,1.9455,3051.8,3051.4,0.88068947]
[1763459034714,1.9455,3051.7,3051.5,0.88068947]
[1763459035435,0.7345,3051.6,3051.5,0.88068947]
[1763459035622,1.9175,3051.6,3051.5,0.88068947]
[1763459036320,2.401,3051.6,3051.4,1.17425263]
[1763459036639,0.4835,3051.5,3051.4,1.17425263]
[1763459036840,0.939,3051.5,3051.4,1.17425263]
[1763459037506,0.4555,3051.5,3051.4,1.17425263]
[1763459038141,1.462,3051.5,3051.4,1.17425263]
[1763459039322,1.462,3051.5,3051.3,0.90699264]
[1763459039733,0.4835,3051.8,3051.3,0.90699264]
[1763459039912,0.4835,3051.8,3051.7,0.88177631]
[1763459040238,1.9455,3051.8,3051.7,0.88177631]
[1763459040446,2.401,3051.8,3051.7,0.88177631]
[1763459041411,0.939,3051.8,3051.7,0.88177631]
[1763459041610,2.401,3051.8,3051.7,0.88177631]
[1763459041848,2.65928,3051.8,3051.7,0.88177631]
[1763459042027,2.65928,3051.8,3051.5,0.88177631]
[1763459042346,0.4555,3051.6,3051.5,0.88177631]
[1763459042735,0.939,3051.6,3051.5,0.88177631]
[1763459043441,0.939,3051.6,3051.0,3.9]
[1763459043442,0.939,3051.6,3051.4,1.17570174]
[1763459043746,0.4555,3051.6,3051.4,1.17570174]
[1763459044052,0.939,3051.5,3051.4,1.17570174]
[1763459044680,0.939,3051.5,3051.3,1.17570174]
[1763459044948,1.218,3051.4,3050.9,0.001]
[1763459045159,0.4552,3051.0,3050.9,0.001]
[1763459045537,0.9387,3051.0,3050.9,0.001]
[1763459045917,0.9379,3051.0,3050.9,0.001]
[1763459046510,1.2169,3051.0,3050.9,0.001]
[1763459049140,1.183,3051.0,3050.9,9.18768148]
[1763459049338,1.462,3051.0,3050.9,13.35948601]
[1763459049540,1.462,3051.0,3050.9,11.59901244]
[1763459049948,0.002,3051.5,3051.0,0.90699264]
[1763459050250,0.002,3051.5,3051.4,1.65869513]
[1763459050451,1.464,3051.5,3051.4,1.65869513]
[1763459050649,1.9556,3051.5,3051.3,1.17569513]
[1763459050852,1.464,3051.5,3051.3,1.17569513]
[1763459051052,1.462,3051.4,3051.3,1.17569513]
[1763459051231,1.462,3051.4,3051.2,0.90699264]
[1763459052256,1.462,3051.4,3051.2,2.67053534]
[1763459053225,1.462,3051.4,3051.3,1.17767261]
[1763459053639,1.9536,3051.4,3051.3,1.17767261]
[1763459054258,1.9536,3051.4,3051.2,1.17767261]
[1763459054818,0.3756,3051.3,3051.2,1.17767261]
[1763459055235,1.462,3051.4,3051.1,1.7635427]
[1763459055439,1.462,3051.4,3051.3,1.17863323]
[1763459055764,1.462,3051.4,3050.9,0.001]
[1763459055765,1.462,3051.4,3051.2,1.7635427]
[1763459056256,0.002,3051.5,3051.3,0.483]
[1763459056461,1.462,3051.4,3051.3,0.483]
[1763459056648,1.462,3051.4,3051.3,2.2465427]
[1763459057639,0.002,3051.5,3051.3,2.2465427]
[1763459057841,1.462,3051.4,3051.3,2.2465427]
[1763459059394,1.462,3051.4,3051.3,0.483]
[1763459060804,0.002,3051.5,3051.3,0.9466]
[1763459060985,1.462,3051.4,3051.3,3.65966826]
[1763459061385,1.462,3051.4,3051.3,4.13636826]
[1763459061593,1.462,3051.4,3051.3,4.59996826]
[1763459061816,1.462,3051.4,3051.3,2.25279664]
[1763459061980,0.279,3051.4,3051.3,2.25279664]
[1763459062175,0.002,3051.5,3051.3,2.4780763]
[1763459062423,0.002,3051.5,3051.4,1.345804]
[1763459062601,1.464,3051.5,3051.4,1.345804]
[1763459062914,1.464,3051.5,3051.4,10.95647812]
[1763459063332,0.002,3051.5,3051.4,10.95647812]
[1763459063508,1.464,3051.5,3051.4,11.50025573]
[1763459064024,1.464,3051.5,3051.4,11.96385573]
[1763459064228,1.464,3051.5,3051.4,11.50025573]
[1763459064426,1.464,3051.5,3051.4,0.90699264]
[1763459064604,1.464,3051.5,3051.4,1.38369264]
[1763459065237,0.002,3051.5,3051.4,1.38369264]
[1763459065413,1.464,3051.5,3051.4,0.90699264]
[1763459065807,0.002,3051.5,3051.4,10.95647812]
[1763459066039,1.464,3051.5,3051.4,11.41866509]
[1763459066242,1.464,3051.5,3051.4,0.90699264]
[1763459066413,0.002,3051.9,3051.5,0.90699264]
[1763459066595,0.002,3051.9,3051.8,0.4767]
[1763459066801,1.464,3051.9,3051.8,4.14519004]
[1763459067002,1.464,3051.9,3051.8,4.99147414]
[1763459068135,0.002,3051.9,3051.8,4.58597014]
[1763459068335,1.464,3051.9,3051.8,1.38369264]
[1763459068923,1.464,3051.9,3051.8,0.90699264]
[1763459069504,1.4632,3051.9,3051.8,0.90699264]
[1763459070240,0.0012,3051.9,3051.8,0.90699264]
[1763459070444,1.4632,3051.9,3051.8,1.38369264]
[1763459070944,1.4632,3051.9,3051.8,1.75766124]
[1763459071654,0.0012,3051.9,3051.8,1.75766124]
[1763459071944,0.0012,3051.9,3051.8,2.22126124]
[1763459071945,1.4632,3051.9,3051.8,2.22126124]
[1763459072345,1.4632,3051.9,3051.8,1.75766124]
[1763459072715,0.2802,3051.9,3051.8,8.88275864]
[1763459072918,1.4632,3051.9,3051.8,5.68919664]
[1763459073226,1.4632,3051.9,3051.8,8.04206232]
[1763459073422,1.4632,3051.9,3051.8,9.30986855]
[1763459073648,0.0012,3051.9,3051.8,9.30986855]
[1763459073821,1.4632,3051.9,3051.8,9.30986855]
[1763459074936,0.0012,3051.9,3051.8,9.30986855]
[1763459075133,1.4632,3051.9,3051.8,9.30986855]
[1763459076112,0.0012,3051.9,3051.8,8.84626855]
[1763459076330,1.4632,3051.9,3051.8,6.49340287]
[1763459076519,1.4632,3051.9,3051.8,9.30812006]
[1763459077240,1.4632,3051.9,3051.8,6.95560287]
[1763459077438,1.4632,3051.9,3051.8,9.30924564]
[1763459077737,1.4632,3051.9,3051.8,6.95560287]
[1763459077946,0.0012,3051.9,3051.8,6.95560287]
[1763459078241,1.4632,3051.9,3051.8,6.95560287]
[1763459078441,0.0012,3051.9,3051.8,6.95560287]
[1763459078630,1.4632,3051.9,3051.8,6.95560287]
[1763459079169,0.002,3052.2,3051.8,6.95560287]
[1763459079170,0.002,3052.2,3051.9,1.31249664]
[1763459079459,0.002,3052.2,3052.1,10.64757812]
[1763459079964,1.185,3052.2,3052.1,11.10977812]
[1763459080165,1.464,3052.2,3052.1,11.10977812]
[1763459081857,0.002,3052.2,3052.1,11.10977812]
[1763459082033,1.464,3052.2,3052.1,11.10977812]
[1763459082244,1.464,3052.2,3052.1,12.54601779]
[1763459083648,0.002,3052.2,3052.1,12.54601779]
[1763459083845,1.464,3052.2,3052.1,12.54601779]
[1763459085356,0.002,3052.2,3052.1,12.54601779]
[1763459085650,1.464,3052.2,3052.1,12.54601779]
[1763459086242,1.464,3052.2,3052.1,12.08381779]
[1763459086842,1.463,3052.2,3052.1,12.54601779]
[1763459088855,1.463,3052.2,3052.1,12.08381779]
[1763459089251,0.002,3052.2,3052.1,12.08381779]
[1763459089459,1.463,3052.2,3052.1,12.08381779]
[1763459089757,1.463,3052.2,3052.1,12.54601779]
[1763459090052,1.463,3052.2,3052.1,12.08381779]
[1763459092454,0.1893,3053.5,3052.5,0.405504]
[1763459092654,0.1893,3053.5,3053.3,1.76867928]
[1763459092655,0.279,3053.4,3053.3,1.76867928]
[1763459093061,0.4639,3053.4,3053.1,3.26523169]
[1763459093262,0.4639,3053.4,3053.0,2.35823905]
[1763459093457,0.9268,3053.4,3053.0,2.68476222]
[1763459093763,0.367,3053.1,3053.0,3.26523169]
[1763459093927,0.367,3053.1,3052.9,1.76818509]
[1763459094132,0.367,3053.1,3052.7,0.90699264]
[1763459094133,0.9276,3053.0,3052.6,0.90699264]
[1763459094326,0.4637,3052.6,3052.5,2.35794474]
[1763459094649,0.4637,3052.6,3052.3,2.35794474]
[1763459094848,0.4647,3052.4,3052.2,2.35794474]
[1763459095162,1.461,3052.3,3052.2,2.35794474]
[1763459095343,1.8272,3052.3,3051.9,1.31249664]
[1763459095538,2.2901,3052.3,3051.9,1.73855213]
[1763459096240,2.2901,3052.3,3051.9,4.68561043]
[1763459096462,0.8291,3052.3,3051.9,4.68561043]
[1763459096667,1.461,3052.2,3051.9,4.68561043]
[1763459097035,1.461,3052.1,3051.9,4.68561043]
[1763459097436,1.461,3052.0,3051.9,4.68561043]
[1763459097882,1.461,3052.0,3051.9,5.14991043]
[1763459098269,0.4629,3052.3,3051.9,5.14991043]
[1763459098470,0.279,3052.0,3051.9,4.72385494]
[1763459099444,0.4629,3052.3,3051.9,4.72385494]
[1763459099631,1.461,3052.2,3051.9,4.72385494]
[1763459099832,1.461,3052.2,3052.1,0.90699264]
[1763459100033,1.9257,3052.2,3052.1,0.90699264]
[1763459101363,0.1893,3052.9,3052.1,0.90699264]
[1763459101364,0.4629,3052.7,3052.1,1.37129264]
[1763459101556,1.182,3052.2,3052.1,1.37129264]
[1763459101751,0.4629,3052.7,3052.1,9.22191987]
[1763459101956,1.9239,3052.6,3052.3,2.36142889]
[1763459102330,0.1818,3054.1,3052.5,8.77922723]
[1763459102532,0.1818,3054.1,3053.4,1.77129348]
[1763459102533,0.6522,3053.5,3053.4,1.77129348]
[1763459102747,2.2989,3053.5,3053.1,3.26842153]
[1763459102964,0.279,3053.4,3053.2,2.36142889]
[1763459103153,0.1818,3054.1,3053.4,0.405504]
[1763459103353,0.1818,3054.1,3053.3,3.26842153]
[1763459103354,0.4647,3053.5,3053.3,3.26842153]
[1763459103552,0.1893,3053.7,3053.0,8.31492723]
[1763459103553,0.6452,3053.4,3053.1,2.36142889]
[1763459103756,0.6452,3053.4,3053.0,0.90699264]
[1763459103757,0.4647,3053.2,3053.0,2.36142889]
[1763459103959,0.4627,3053.1,3053.0,2.36142889]
[1763459104640,0.4627,3053.1,3052.7,1.31249664]
[1763459104845,0.4627,3053.1,3052.8,1.25744822]
[1763459105384,1.461,3053.0,3052.9,0.405504]
[1763459105883,1.461,3053.0,3052.9,0.869804]
[1763459106066,1.461,3053.0,3052.9,0.405504]
[1763459107868,1.9118,3053.0,3052.9,0.405504]
[1763459108056,1.9118,3053.0,3052.8,0.405504]
[1763459108263,0.3554,3052.9,3052.8,0.405504]
[1763459108969,0.3554,3052.9,3052.8,2.3592572]
[1763459108970,1.0275,3052.9,3052.8,2.3592572]
[1763459109356,1.0275,3052.9,3052.6,2.3592572]
[1763459109544,0.4878,3052.8,3052.6,2.3592572]
[1763459109775,0.4508,3052.7,3052.6,2.3592572]
[1763459109955,1.9118,3052.7,3052.6,2.3592572]
[1763459110564,0.4508,3052.7,3052.6,2.3592572]
[1763459110765,1.9118,3052.7,3052.6,2.3592572]
[1763459111780,1.9118,3052.7,3052.2,3.5196623]
[1763459111781,2.3996,3052.7,3052.5,2.3592572]
[1763459111981,1.17856,3052.6,3052.3,2.3592572]
[1763459112167,0.4878,3052.6,3052.3,2.3592572]
[1763459112478,0.4508,3052.4,3052.3,2.3592572]
[1763459112680,1.9118,3052.4,3052.1,2.3592572]
[1763459112853,0.4878,3052.3,3052.1,2.3592572]
[1763459113060,0.4508,3052.2,3052.0,2.3602572]
[1763459113263,0.4878,3052.3,3052.0,0.001]
[1763459113264,0.3604,3052.1,3052.0,0.001]
[1763459115677,0.1843,3052.9,3052.0,3.40771435]
[1763459115883,0.1843,3052.9,3052.8,1.76879113]
[1763459116272,1.1229,3052.9,3052.8,1.76879113]
[1763459116470,1.1221,3052.9,3052.5,2.35838817]
[1763459116671,0.4878,3052.8,3052.5,2.35838817]
[1763459116874,0.279,3052.7,3052.5,2.35838817]
[1763459117091,0.4508,3052.6,3052.2,2.35838817]
[1763459117253,0.4508,3052.3,3052.2,2.35838817]
[1763459117584,0.7298,3052.3,3052.2,2.35838817]
[1763459117975,0.4508,3052.3,3052.2,2.35838817]
[1763459118176,0.7298,3052.3,3052.2,2.80413445]
[1763459118503,0.7298,3052.3,3052.2,0.44574628]
[1763459119004,1.2176,3052.3,3052.0,0.001]
[1763459119155,0.4508,3052.1,3052.0,0.001]
[1763459119376,0.4508,3052.1,3052.0,0.90799264]
[1763459120089,0.4516,3052.5,3052.0,1.37909264]
[1763459120314,0.4516,3052.5,3052.4,1.17899089]
[1763459120514,1.9126,3052.5,3052.4,1.17899089]
[1763459120696,2.3701,3052.5,3052.4,1.17899089]
[1763459121002,2.3701,3052.5,3052.3,1.76848633]
[1763459121202,1.461,3052.5,3052.3,1.76848633]
[1763459121398,0.9091,3052.4,3052.3,1.76848633]
[1763459122016,0.9091,3052.4,3052.2,1.76848633]
[1763459122314,0.3895,3052.3,3052.2,1.76848633]
[1763459122476,1.8505,3052.3,3052.2,1.76848633]
[1763459122893,1.8505,3052.3,3052.0,3.26638081]
[1763459123121,1.8505,3052.3,3052.1,1.1581308]
[1763459123487,0.3895,3052.3,3052.1,1.1581308]
[1763459123694,0.1835,3052.9,3052.2,0.405504]
[1763459123892,1.461,3053.0,3052.8,0.4711]
[1763459124190,1.461,3053.0,3052.9,1.76810797]
[1763459124589,1.9185,3053.0,3052.8,1.76810797]
[1763459124780,1.461,3053.0,3052.8,1.76810797]
[1763459124983,1.1086,3052.9,3052.7,1.76810797]
[1763459125182,0.3737,3052.8,3052.6,1.76810797]
[1763459125414,0.4516,3052.8,3052.6,1.76810797]
[1763459125732,0.4575,3052.7,3052.6,1.76810797]
[1763459126233,0.9091,3052.7,3052.6,1.76810797]
[1763459127222,0.9091,3052.7,3052.5,1.76810797]
[1763459127429,0.4575,3052.4,3052.3,0.90699264]
[1763459127600,1.9185,3052.4,3052.3,2.18083652]
[1763459127800,1.461,3052.4,3052.3,2.65193652]
[1763459128024,0.3679,3052.6,3052.3,5.01032469]
[1763459128323,0.279,3052.5,3052.3,5.01032469]
[1763459128519,0.1995,3052.9,3052.4,1.33252519]
[1763459128818,1.461,3052.8,3052.6,8.31492723]
[1763459129186,0.002,3053.4,3052.6,8.31492723]
[1763459129187,0.002,3053.4,3052.6,2.35838817]
[1763459129385,1.182,3052.7,3052.6,9.22191987]
[1763459129585,1.9185,3052.7,3052.6,9.22191987]
[1763459130248,0.002,3053.4,3052.7,4.77349664]
[1763459130390,0.4516,3054.4,3053.4,1.31249664]
[1763459130724,1.462,3054.3,3054.2,0.88361892]
[1763459131021,2.56246,3054.3,3054.2,0.88361892]
[1763459131213,2.56246,3054.3,3054.0,1.1780328]
[1763459131214,2.56246,3054.3,3054.0,0.88361892]
[1763459131522,0.3461,3054.1,3054.0,0.88361892]
[1763459131731,0.3461,3054.1,3053.9,0.88361892]
[1763459131928,0.4516,3054.0,3053.9,0.88361892]
[1763459132129,0.9091,3054.0,3053.9,0.88361892]
[1763459132491,0.9091,3054.0,3053.8,0.88361892]
[1763459132721,1.65336,3054.3,3053.9,0.88361892]
[1763459133021,1.347336,3054.2,3054.0,0.88361892]
[1763459133229,0.4575,3054.1,3054.0,0.88361892]
[1763459133396,0.9091,3054.1,3053.9,0.88361892]
[1763459133597,0.4516,3054.1,3053.9,0.88361892]
[1763459133797,0.9091,3054.0,3053.7,1.1780328]
[1763459134121,0.5456,3053.8,3053.7,1.1780328]
[1763459134533,0.9972,3053.8,3053.7,1.1780328]
[1763459136435,0.9972,3053.8,3053.6,1.1780328]
[1763459136615,0.7508,3053.7,3053.6,1.1780328]
[1763459136817,1.2209,3053.7,3053.6,1.1780328]
[1763459137025,1.2209,3053.7,3053.5,1.1780328]
[1763459137231,0.4708,3053.6,3053.5,1.1780328]
[1763459137536,0.9409,3053.6,3053.5,1.1780328]
[1763459137737,0.9409,3053.6,3053.4,0.88316891]
[1763459138040,0.9409,3053.5,3053.4,0.88316891]
[1763459138807,0.9409,3053.5,3053.3,1.1780328]
[1763459139002,0.9409,3053.5,3053.4,1.1780328]
[1763459139717,0.4708,3054.6,3053.5,0.405504]
[1763459139903,1.9318,3054.5,3054.2,0.88293892]
[1763459140116,1.182,3054.4,3054.3,0.88293892]
[1763459140316,1.182,3054.4,3054.2,0.88293892]
[1763459140721,0.4701,3054.3,3054.2,0.88293892]
[1763459140919,1.81731,3054.3,3054.2,0.88293892]
[1763459141244,1.6521,3054.3,3053.9,0.88293892]
[1763459141410,1.462,3054.3,3053.8,0.88293892]
[1763459141605,1.462,3054.3,3053.7,0.88293892]
[1763459142042,0.6675,3053.8,3053.7,0.88293892]
[1763459142214,0.9475,3053.8,3053.7,0.88293892]
[1763459142421,1.4183,3053.8,3053.7,0.88293892]
[1763459142944,1.4183,3053.8,3053.7,0.8825727]
[1763459143542,0.28,3053.8,3053.6,1.17725189]
[1763459143744,1.2209,3053.8,3053.6,1.17725189]
[1763459144052,0.316,3053.7,3053.6,1.17725189]
[1763459144537,0.7868,3053.7,3053.6,1.17725189]
[1763459144742,0.7868,3053.7,3053.5,1.17725189]
[1763459144929,0.4708,3053.6,3053.5,1.17725189]
[1763459145128,0.9409,3053.6,3053.5,1.17725189]
[1763459145347,0.9409,3053.6,3053.4,0.001]
[1763459145537,0.7868,3053.5,3053.4,0.001]
[1763459148315,0.28,3053.8,3053.4,0.001]
[1763459148515,0.4708,3054.0,3053.6,1.17704672]
[1763459148716,0.28,3053.9,3053.8,0.88288441]
[1763459148917,0.4708,3054.0,3053.8,0.88288441]
[1763459149117,1.9311,3053.9,3053.7,1.17704672]
[1763459149317,1.9311,3053.9,3053.8,1.17704672]
[1763459149758,2.83949,3053.9,3053.8,0.88309716]
[1763459151326,2.83949,3053.9,3053.6,1.17704672]
[1763459151531,0.316,3053.7,3053.6,1.17704672]
[1763459152160,1.777,3053.7,3053.6,1.17704672]
[1763459152458,1.777,3053.7,3053.5,1.76587784]
[1763459152758,1.461,3053.6,3053.5,1.76587784]
[1763459154051,1.9311,3053.6,3053.5,1.76587784]
[1763459155367,1.9311,3053.6,3053.4,0.001]
[1763459156567,1.9311,3053.6,3053.4,0.23670656]
[1763459156946,1.461,3053.5,3053.4,0.23670656]
[1763459157347,1.461,3053.5,3053.4,1.1436992]
[1763459158435,1.461,3053.5,3053.4,1.6221992]
[1763459159367,1.182,3053.5,3053.4,10.82943043]
[1763459159569,1.461,3053.5,3053.4,10.82943043]
[1763459160271,0.4708,3054.4,3053.5,0.405504]
[1763459160472,1.461,3054.3,3053.9,2.36223417]
[1763459160775,1.461,3054.3,3054.0,2.36223417]
[1763459161471,0.4701,3054.1,3053.9,3.26922681]
[1763459161673,1.9318,3054.3,3053.9,0.90699264]
[1763459161876,1.9318,3054.3,3053.7,0.88557249]
[1763459161877,0.4701,3054.0,3053.7,0.88557249]
[1763459162077,0.4701,3053.6,3053.4,0.001]
[1763459162283,0.4928,3053.5,3053.4,0.001]
[1763459162440,0.9636,3053.5,3053.4,0.001]
[1763459163260,0.6846,3053.5,3053.4,0.001]
[1763459163457,0.9636,3053.5,3053.4,0.001]
[1763459163665,0.9628,3053.5,3053.4,0.001]
[1763459169189,3.3268,3053.5,3053.4,0.001]
[1763459171481,0.9628,3053.5,3053.4,0.001]
[1763459174195,0.1841,3053.9,3053.4,0.001]
[1763459174394,0.1841,3053.9,3053.4,0.4555]
[1763459174594,0.279,3053.8,3053.4,0.9323]
[1763459174794,0.279,3053.8,3053.4,1.11622926]
[1763459175589,0.279,3053.8,3053.7,0.4545]
[1763459175776,0.4635,3054.4,3053.7,0.4545]
[1763459175976,0.279,3054.3,3053.7,0.4545]
[1763459176497,0.306,3053.8,3053.4,0.001]
[1763459176793,0.279,3053.7,3053.4,0.001]
[1763459177178,0.279,3053.7,3053.6,0.4545]
[1763459177373,0.279,3053.7,3053.4,0.4778]
[1763459177374,0.279,3053.7,3053.4,0.001]
[1763459179097,1.182,3053.6,3053.4,0.001]
[1763459179399,0.306,3053.5,3053.4,0.001]
[1763459179612,0.768,3053.5,3053.4,0.001]
[1763459182314,2.229,3053.5,3053.4,0.001]
[1763459185924,0.306,3053.5,3053.4,0.001]
[1763459186214,0.306,3053.5,3053.4,0.9255]
[1763459186215,1.461,3053.5,3053.4,0.9255]
[1763459186417,1.461,3053.5,3053.4,0.4746]
[1763459186989,1.182,3053.5,3053.4,0.4746]
[1763459188000,1.9499,3053.5,3053.4,0.001]
[1763459188200,2.2289,3053.5,3053.4,0.001]
[1763459189021,1.7685,3053.5,3053.4,0.001]
[1763459189703,2.2289,3053.5,3053.4,0.001]
[1763459190027,0.5865,3053.5,3053.4,0.001]
[1763459190196,1.461,3053.5,3053.4,0.001]
[1763459190889,1.7701,3053.5,3053.4,0.001]
[1763459191323,2.229,3053.5,3053.4,0.001]
[1763459195408,1.7701,3053.5,3053.4,0.001]
[1763459195950,2.229,3053.5,3053.4,0.001]
[1763459197028,2.231,3053.5,3053.4,0.001]
[1763459210664,2.2302,3053.5,3053.4,0.001]
[1763459213065,1.75815862,3053.5,3053.4,0.001]
[1763459214963,0.61475462,3053.5,3053.4,0.001]
[1763459215172,1.0482,3053.5,3053.4,0.001]
[1763459215870,0.7692,3053.5,3053.4,0.001]
[1763459216062,1.0482,3053.5,3053.4,0.001]
[1763459216457,0.3103,3053.5,3053.4,0.001]
[1763459216664,0.5893,3053.5,3053.4,0.001]
[1763459217075,1.0482,3053.5,3053.4,0.001]
[1763459219211,3.4122,3053.5,3053.4,0.001]
[1763459221183,2.2302,3053.5,3053.4,0.001]
[1763459221484,1.35264757,3053.5,3053.4,0.001]
[1763459222488,0.61474757,3053.5,3053.4,0.001]
[1763459222675,0.281,3053.5,3053.4,0.4823]
[1763459224697,0.281,3053.5,3053.4,7.35119569]
[1763459224698,0.002,3053.5,3053.4,7.35119569]
[1763459224901,0.281,3053.5,3053.4,10.03457474]
[1763459225219,0.281,3053.5,3053.4,8.26342976]
[1763459225410,0.281,3053.5,3053.4,10.03452261]
[1763459225786,0.281,3053.5,3053.4,8.26342976]